{"text_format":"1","workbook":"xlsx","n_sheets":3,"sheets":["Лист1","Лист2","Лист3"],"not_rendered":{"charts":0,"images":0,"macros":1,"external_links":0,"defined_names":0,"comments":0,"pivot_tables":1},"unopened":[],"bounds":{"document_bytes":16777216,"sheet_cells":100000,"rows_first":2000,"rows_last":500,"rows_between":2000,"halvings":0,"cell_chars":16384,"cell_head_chars":4096},"cells_cut":0,"cells_raw":0,"read":"whole","date_system":"1900"}

{"sheet":"Лист1","index":0,"n_rows":21,"n_cols":9,"rows_kept":21,"cut":false,"hidden":false,"merged":[]}
["ФИО","ДОП",null,null,null,null,null,"ДОП",0]
["ИВАНОВ",{"$f":"COUNTIF($E$2:$E$7,A2)","v":0},null,null,"ХОМЯКОВ"]
["ПЕТРОВ",{"$f":"COUNTIF($E$2:$E$7,A3)","v":1},null,null,"СЕНТЯБРЕВ",null,null,"Названия строк"]
["СИДОРОВ",0,null,null,"СУСЛИКОВ",null,null,"АВГУСТОВ"]
["ИГНАТОВ",0,null,null,"ПЕТРОВ",null,null,"ДОВАТОРЦЕВ"]
["КУЗЬМОВ",0,null,null,"ДОБРОВ",null,null,"ЖУКОВСКИЙ"]
["ИБРАГИМОВ",0,null,null,null,null,null,"ЗАЙЦЕВ"]
["ХОРЬКОВ",0,null,null,null,null,null,"ИБРАГИМОВ"]
["СУСЛИКОВ",1,null,null,null,null,null,"ИВАНОВ"]
["ЗАЙЦЕВ",0,null,null,null,null,null,"ИГНАТОВ"]
["ХОМЯКОВ",1,null,null,null,null,null,"ИЮЛЕВ"]
["СЛОНИКОВ",0,null,null,null,null,null,"КУЗЬМОВ"]
["ТИГРОВ",0,null,null,null,null,null,"ЛЕОПАРДОВ"]
["ЛЕОПАРДОВ",0,null,null,null,null,null,"СИДОРОВ"]
["АВГУСТОВ",0,null,null,null,null,null,"СЛОНИКОВ"]
["ИЮЛЕВ",0,null,null,null,null,null,"ТИГРОВ"]
["СЕНТЯБРЕВ",1,null,null,null,null,null,"ТУХАЧЕВСКИЙ"]
["ДОВАТОРЦЕВ",0,null,null,null,null,null,"ХОРЬКОВ"]
["ТУХАЧЕВСКИЙ",0,null,null,null,null,null,"Общий итог"]
["ЖУКОВСКИЙ",0]
["ДОБРОВ",1]

{"sheet":"Лист2","index":1,"n_rows":0,"n_cols":0,"rows_kept":0,"cut":false,"hidden":false,"merged":[]}

{"sheet":"Лист3","index":2,"n_rows":0,"n_cols":0,"rows_kept":0,"cut":false,"hidden":false,"merged":[]}